fUST/lending_fUST_20251222
["ID","MTS","AMOUNT","RATE_DAILY","PERIOD"]
[399448662,1766363441976,-164.30676054,0.00012531,7]
[399448664,1766363441985,-500.0,0.00012547,2]
[399448666,1766363441995,-167.83563981,0.00012575,2]
[399448668,1766363442005,-151.0,0.000126,2]
[399448670,1766363442014,-167.83563981,0.0001263,2]
[399448672,1766363442024,-369.82259463,0.00012658,7]
[399448674,1766363442033,-167.83563981,0.00012685,2]
[399448676,1766363442043,-167.83563981,0.0001274,2]
[399448678,1766363442053,-767.7842514,0.00012755,2]
[399448680,1766363442063,-1000.0,0.0001281,2]
[399448682,1766363442072,-791.0,0.0001281,2]
[399448684,1766363442082,-500.0,0.00012821,2]
[399448686,1766363442092,-167.83563981,0.00012822,2]
[399448688,1766363442105,-167.83563981,0.00012877,2]
[399448690,1766363442116,-151.0,0.000129,2]
[399448692,1766363442128,-167.83563981,0.00012932,2]
[399448694,1766363442139,-151.0,0.00013,2]
[399448697,1766363442150,-151.0,0.00013,2]
[399448699,1766363442160,-500.0,0.00013095,2]
[399448701,1766363442170,-537.79045497,0.0001316,2]
[399448703,1766363442180,-16055.69253648,0.00013164,2]
[399448705,1766363442190,-151.0,0.000132,2]
[399448707,1766363442199,-500.0,0.00013273,2]
[399448709,1766363442209,-500.0,0.00013273,2]
[399448711,1766363442218,-395.46280108,0.00013273,2]
[399448713,1766363442228,-500.0,0.00013273,2]
[399448715,1766363442237,-500.0,0.00013273,2]
[399448717,1766363442246,-500.0,0.00013273,2]
[399448719,1766363442255,-500.0,0.00013273,2]
[399448721,1766363442265,-217.55786025,0.00013273,2]
[399448723,1766363442274,-200.8054024,0.00013273,2]
[399448725,1766363442283,-500.0,0.00013273,2]
[399448727,1766363442292,-500.0,0.00013273,2]
[399448729,1766363442301,-500.0,0.00013273,2]
[399448731,1766363442311,-500.0,0.00013273,2]
[399448733,1766363442323,-312.88312227,0.00013273,2]
[399448735,1766363442334,-500.0,0.00013273,2]
[399448738,1766363442349,-500.78648549,0.00013273,2]
[399448740,1766363442359,-500.0,0.00013273,2]
[399448742,1766363442370,-500.0,0.00013273,2]
[399448744,1766363442381,-500.0,0.00013273,2]
[399448746,1766363442392,-500.0,0.00013273,2]
[399448748,1766363442402,-500.0,0.00013273,2]
[399448750,1766363442411,-500.0,0.00013273,2]
[399448752,1766363442422,-500.0,0.00013273,2]
[399448754,1766363442431,-502.10412581,0.00013273,2]
[399448756,1766363442441,-502.79052635,0.00013273,2]
[399448758,1766363442451,-500.0,0.00013273,2]
[399448760,1766363442461,-500.0,0.00013273,2]
[399448762,1766363442470,-500.0,0.00013273,2]
[399448765,1766363442480,-464.090742,0.00013273,2]
[399448767,1766363442489,-500.0,0.00013273,2]
[399448769,1766363442499,-500.0,0.00013273,2]
[399448771,1766363442508,-500.0,0.00013273,2]
[399448773,1766363442517,-500.0,0.00013273,2]
[399448775,1766363442526,-500.0,0.00013273,2]
[399448777,1766363442536,-385.28226384,0.00013273,2]
[399448779,1766363442545,-615.38414698,0.00013273,2]
[399448781,1766363442555,-500.0,0.00013273,2]
[399448783,1766363442564,-500.0,0.00013273,2]
[399448785,1766363442574,-151.0,0.00013273,2]
[399448787,1766363442584,-151.0,0.00013273,2]
[399448789,1766363442594,-796.19226871,0.00013303,2]
[399448791,1766363442604,-208.21350612,0.00013369,2]
[399448793,1766363442613,-151.0,0.000134,2]
[399448795,1766363442625,-151.0,0.000134,2]
[399448797,1766363442635,-489.3427051,0.00013425,2]
[399448799,1766363442645,-151.0,0.000135,2]
[399448801,1766363442655,-300.0,0.00013673,2]
[399448803,1766363442665,-1050.09,0.00013698,2]
[399448805,1766363442674,-1050.09,0.00013698,2]
[399448807,1766363442683,-1050.09,0.00013698,2]
[399448809,1766363442693,-1050.09,0.00013698,2]
[399448812,1766363442703,-1050.09,0.00013698,2]
[399448814,1766363442713,-1050.09,0.00013698,2]
[399448816,1766363442722,-1050.09,0.00013698,2]
[399448818,1766363442731,-1050.09,0.00013698,2]
[399448820,1766363442741,-1050.09,0.00013698,2]
[399448822,1766363442751,-1050.09,0.00013698,2]
[399448824,1766363442761,-1050.09,0.00013698,2]
[399448826,1766363442771,-1050.09,0.00013698,2]
[399448828,1766363442780,-1050.09,0.00013698,2]
[399448830,1766363442789,-1050.09,0.00013698,2]
[399448832,1766363442799,-1050.09,0.00013698,2]
[399448834,1766363442808,-1050.09,0.00013698,2]
[399448836,1766363442818,-1050.09,0.00013698,2]
[399448838,1766363442828,-1050.09,0.00013698,2]
[399448840,1766363442837,-1050.09,0.00013698,2]
[399448842,1766363442847,-1050.09,0.00013698,2]
[399448844,1766363442856,-1050.09,0.00013698,2]
[399448846,1766363442866,-1050.09,0.00013698,2]
[399448848,1766363442878,-1050.09,0.00013698,2]
[399448851,1766363442888,-1050.09585601,0.00013698,2]
[399448853,1766363442898,-510.70751415,0.00013698,2]
[399448855,1766363442909,-500.0,0.00013698,2]
[399448857,1766363442918,-500.0,0.00013698,2]
[399448859,1766363442928,-500.0,0.00013698,2]
[399448861,1766363442938,-500.0,0.00013698,2]
[399448863,1766363442947,-500.0,0.00013698,2]
[399448865,1766363442957,-500.0,0.00013698,2]
[399448867,1766363442968,-500.0,0.00013698,2]
[399448869,1766363442977,-500.0,0.00013698,2]
[399448871,1766363442987,-187.78,0.00013698,2]
[399448873,1766363442997,-510.3471048,0.00013698,2]
[399448875,1766363443008,-500.0,0.00013698,2]
[399448878,1766363443017,-500.0,0.00013698,2]
[399448881,1766363443027,-500.0,0.00013698,2]
[399448885,1766363443037,-500.0,0.00013698,2]
[399448887,1766363443047,-318.24,0.00013698,2]
[399448889,1766363443056,-500.0,0.00013698,2]
[399448891,1766363443066,-500.0,0.00013698,2]
[399448893,1766363443076,-500.0,0.00013698,2]
[399448895,1766363443086,-500.0,0.00013698,2]
[399448897,1766363443096,-500.0,0.00013698,2]
[399448899,1766363443109,-500.0,0.00013698,2]
[399448901,1766363443119,-500.0,0.00013698,2]
[399448903,1766363443130,-500.0,0.00013698,2]
[399448905,1766363443142,-217.50843918,0.00013698,2]
[399448908,1766363443152,-500.0,0.00013698,2]
[399448909,1766363443162,-514.71641533,0.00013698,2]
[399448910,1766363443173,-604.19,0.00013698,2]
[399448911,1766363443183,-604.19,0.00013698,2]
[399448912,1766363443195,-604.19,0.00013698,2]
[399448914,1766363443206,-604.19,0.00013698,2]
[399448916,1766363443215,-604.19,0.00013698,2]
[399448918,1766363443225,-604.19,0.00013698,2]
[399448920,1766363443235,-604.19,0.00013698,2]
[399448922,1766363443245,-604.19,0.00013698,2]
[399448923,1766363443255,-604.19,0.00013698,2]
[399448924,1766363443264,-604.19,0.00013698,2]
[399448925,1766363443274,-604.19,0.00013698,2]
[399448928,1766363443284,-604.19,0.00013698,2]
[399448930,1766363443294,-604.19,0.00013698,2]
[399448932,1766363443303,-604.19,0.00013698,2]
[399448934,1766363443312,-604.19,0.00013698,2]
[399448937,1766363443321,-604.19,0.00013698,2]
[399448940,1766363443331,-604.19,0.00013698,2]
[399448942,1766363443340,-604.19,0.00013698,2]
[399448944,1766363443349,-604.19,0.00013698,2]
[399448946,1766363443359,-604.19,0.00013698,2]
[399448948,1766363443368,-604.19,0.00013698,2]
[399448950,1766363443379,-604.19,0.00013698,2]
[399448952,1766363443388,-604.19,0.00013698,2]
[399448954,1766363443397,-604.34538339,0.00013698,2]
[399448956,1766363443407,-500.0,0.00013698,2]
[399448958,1766363443416,-600.10278135,0.00013698,2]
[399448960,1766363443426,-500.0,0.00013698,2]
[399448962,1766363443435,-500.0,0.00013698,2]
[399448964,1766363443445,-500.0,0.00013698,2]
[399448966,1766363443454,-500.0,0.00013698,2]
[399448969,1766363443472,-500.0,0.00013698,2]
[399448971,1766363443482,-500.0,0.00013698,2]
[399448973,1766363443491,-500.0,0.00013698,2]
[399448975,1766363443500,-500.0,0.00013698,2]
[399448977,1766363443510,-500.0,0.00013698,2]
[399448979,1766363443520,-500.0,0.00013698,2]
[399448981,1766363443529,-500.0,0.00013698,2]
[399448983,1766363443538,-500.0,0.00013698,2]
[399448985,1766363443548,-500.0,0.00013698,2]
[399448987,1766363443557,-500.0,0.00013698,2]
[399448989,1766363443567,-500.0,0.00013698,2]
[399448991,1766363443577,-500.0,0.00013698,2]
[399448993,1766363443587,-500.0,0.00013698,2]
[399448995,1766363443596,-500.0,0.00013698,2]
[399448997,1766363443606,-500.0,0.00013698,2]
[399448999,1766363443616,-497.56,0.00013698,2]
[399449001,1766363443625,-500.0,0.00013698,2]
[399449003,1766363443635,-500.0,0.00013698,2]
[399449005,1766363443644,-500.0,0.00013698,2]
[399449008,1766363443653,-500.0,0.00013698,2]
[399449010,1766363443663,-500.0,0.00013698,2]
[399449012,1766363443672,-500.0,0.00013698,2]
[399449014,1766363443681,-500.0,0.00013698,2]
[399449016,1766363443690,-624.6403768,0.00013698,2]
[399449018,1766363443699,-151.0,0.00013698,2]
[399449020,1766363443708,-151.0,0.00013698,2]
[399449022,1766363443718,-500.0,0.00013698,2]
[399449024,1766363443727,-151.0,0.00013698,2]
[399449026,1766363443736,-500.0,0.00013698,2]
[399449028,1766363443746,-500.0,0.00013698,2]
[399449030,1766363443755,-500.0,0.00013698,2]
[399449032,1766363443764,-151.0,0.00013698,2]
[399449034,1766363443774,-151.0,0.00013698,2]
[399449036,1766363443784,-500.0,0.00013698,2]
[399449038,1766363443793,-500.0,0.00013698,2]
[399449040,1766363443803,-500.0,0.00013698,2]
[399449042,1766363443813,-500.0,0.00013698,2]
[399449045,1766363443822,-500.0,0.00013698,2]
[399449048,1766363443831,-505.84755397,0.00013698,2]
[399449050,1766363443841,-229.591676,0.00013698,2]
[399449052,1766363443850,-229.591676,0.00013698,2]
[399449054,1766363443862,-229.591676,0.00013698,2]
[399449057,1766363443872,-229.591686,0.00013698,2]
[399449059,1766363443882,-500.0,0.00013698,2]
[399449061,1766363443892,-500.0,0.00013698,2]
[399449063,1766363443901,-500.0,0.00013698,2]
[399449065,1766363443911,-500.0,0.00013698,2]
[399449067,1766363443921,-500.0,0.00013698,2]
[399449069,1766363443931,-502.92199507,0.00013698,2]
[399449071,1766363443941,-12548.4108941,0.00013699,2]
[399449073,1766363443951,-1865.171083,0.00013699,2]
[399449075,1766363443960,-2939.4187579,0.00013699,2]
[399449077,1766363443970,-1049.046685,0.00013699,2]
[399449079,1766363443979,-1269.654137,0.00013699,2]
[399449081,1766363443989,-1269.654137,0.00013699,2]
[399449083,1766363443999,-1269.654137,0.00013699,2]
[399449085,1766363444009,-1269.654137,0.00013699,2]
[399449087,1766363444018,-1269.654137,0.00013699,2]
[399449089,1766363444028,-1269.654137,0.00013699,2]
[399449091,1766363444038,-1269.654137,0.00013699,2]
[399449093,1766363444047,-1269.654137,0.00013699,2]
[399449095,1766363444057,-1269.654137,0.00013699,2]
[399449097,1766363444067,-1269.654137,0.00013699,2]
[399449099,1766363444076,-1269.654137,0.00013699,2]
[399449101,1766363444087,-1269.654137,0.00013699,2]
[399449103,1766363444097,-1269.654137,0.00013699,2]
[399449105,1766363444110,-1269.654137,0.00013699,2]
[399449108,1766363444119,-1269.654137,0.00013699,2]
[399449110,1766363444130,-1269.654137,0.00013699,2]
[399449112,1766363444139,-1269.654137,0.00013699,2]
[399449114,1766363444149,-1269.654137,0.00013699,2]
[399449116,1766363444159,-1269.654137,0.00013699,2]
[399449118,1766363444169,-1269.654133,0.00013699,2]
[399449120,1766363444179,-1000.0,0.00013699,2]
[399449122,1766363444189,-159.683384,0.00013699,2]
[399449124,1766363444198,-159.683384,0.00013699,2]
[399449126,1766363444208,-159.683384,0.00013699,2]
[399449128,1766363444217,-159.683384,0.00013699,2]
[399449130,1766363444226,-159.683384,0.00013699,2]
[399449132,1766363444235,-159.683384,0.00013699,2]
[399449134,1766363444244,-159.683384,0.00013699,2]
[399449136,1766363444254,-500.0,0.00013699,2]
[399449138,1766363444265,-500.18133578,0.00013699,2]
[399449140,1766363444274,-500.0,0.00013699,2]
[399449142,1766363444284,-501.37010584,0.00013699,2]
[399449144,1766363444293,-500.0,0.00013699,2]
[399449146,1766363444302,-500.74213,0.00013699,2]
[399449148,1766363444312,-500.0,0.00013699,2]
[399449150,1766363444322,-500.0,0.00013699,2]
[399449152,1766363444331,-500.0,0.00013699,2]
[399449154,1766363444340,-500.0,0.00013699,2]
[399449156,1766363444350,-500.0,0.00013699,2]
[399449158,1766363444359,-202.53800811,0.00013699,2]
[399449160,1766363444368,-500.0,0.00013699,2]
[399449162,1766363444380,-159.98182941,0.00013699,2]
[399449164,1766363444390,-500.0,0.00013699,2]
[399449166,1766363444399,-500.27808397,0.00013699,2]
[399449168,1766363444409,-500.0,0.00013699,2]
[399449170,1766363444418,-500.0,0.00013699,2]
[399449173,1766363444432,-500.0,0.00013699,2]
[399449174,1766363444443,-500.1062462,0.00013699,2]
[399449176,1766363444452,-500.70935209,0.00013699,2]
[399449179,1766363444462,-500.0,0.00013699,2]
[399449181,1766363444471,-500.0,0.00013699,2]
[399449183,1766363444480,-500.0,0.00013699,2]
[399449184,1766363444489,-500.0,0.00013699,2]
[399449186,1766363444499,-500.0,0.00013699,2]
[399449188,1766363444509,-500.0,0.00013699,2]
[399449191,1766363444519,-518.23928555,0.00013699,2]
[399449193,1766363444528,-500.0,0.00013699,2]
[399449194,1766363444537,-500.0,0.00013699,2]
[399449197,1766363444547,-438.01399108,0.00013699,2]
[399449199,1766363444555,-500.0,0.00013699,2]
[399449201,1766363444565,-500.18134678,0.00013699,2]
[399449202,1766363444575,-500.0,0.00013699,2]
[399449204,1766363444589,-500.0,0.00013699,2]
[399449207,1766363444608,-500.0,0.00013699,2]
[399449209,1766363444618,-500.0,0.00013699,2]
[399449211,1766363444629,-500.0,0.00013699,2]
[399449212,1766363444639,-500.0,0.00013699,2]
[399449215,1766363444648,-500.0,0.00013699,2]
[399449217,1766363444658,-177.8888493,0.00013699,2]
[399449219,1766363444667,-500.0,0.00013699,2]
[399449220,1766363444676,-500.0,0.00013699,2]
[399449222,1766363444686,-500.0,0.00013699,2]
[399449225,1766363444696,-455.43621764,0.00013699,2]
[399449227,1766363444705,-500.0,0.00013699,2]
[399449229,1766363444715,-523.11912749,0.00013699,2]
[399449231,1766363444724,-500.49601364,0.00013699,2]
[399449233,1766363444733,-500.0,0.00013699,2]
[399449235,1766363444742,-524.21541732,0.00013699,2]
[399449237,1766363444752,-500.31874727,0.00013699,2]
[399449239,1766363444761,-500.0,0.00013699,2]
[399449241,1766363444771,-502.68727972,0.00013699,2]
[399449243,1766363444781,-500.0,0.00013699,2]
[399449245,1766363444791,-500.0,0.00013699,2]
[399449247,1766363444801,-2000.0,0.00013699,7]
[399449249,1766363444811,-500.0,0.00013699,2]
[399449251,1766363444820,-500.0,0.00013699,2]
[399449253,1766363444829,-500.0,0.00013699,2]
[399449255,1766363444838,-163.47848876,0.00013699,2]
[399449257,1766363444847,-173.188389,0.00013699,2]
[399449259,1766363444856,-500.0,0.00013699,2]
[399449261,1766363444867,-165.9902572,0.00013699,2]
[399449263,1766363444878,-500.0,0.00013699,2]
[399449265,1766363444887,-198.00196637,0.00013699,2]
[399449266,1766363444897,-500.0,0.00013699,2]
[399449267,1766363444907,-636.04411628,0.00013699,2]
[399449268,1766363444916,-500.0,0.00013699,2]
[399449269,1766363444926,-500.0,0.00013699,2]
[399449270,1766363444936,-500.0,0.00013699,2]
[399449271,1766363444946,-500.0,0.00013699,2]
[399449272,1766363444956,-500.0,0.00013699,2]
[399449273,1766363444966,-157.93362142,0.00013699,2]
[399449274,1766363444976,-500.0,0.00013699,2]
[399449275,1766363444986,-500.0,0.00013699,2]
[399449276,1766363444997,-500.0,0.00013699,2]
[399449277,1766363445007,-151.0,0.00013699,2]
[399449278,1766363445017,-151.0,0.00013699,2]
[399449279,1766363445027,-151.0,0.00013699,2]
[399449280,1766363445036,-151.0,0.00013699,2]
[399449281,1766363445046,-151.0,0.00013699,2]
[399449304,1766363445297,-151.0,0.00013699,2]
[399449306,1766363445333,-151.0,0.00013699,2]
[399449308,1766363445343,-151.0,0.00013699,2]
[399449310,1766363445353,-160.0,0.00013699,2]
[399449312,1766363445362,-187.11872692,0.00013774,2]
[399449314,1766363445371,-151.0,0.000138,2]
[399449316,1766363445381,-501.58527591,0.00013821,2]
[399449318,1766363445391,-501.31211907,0.00013821,2]
[399449320,1766363445402,-326.40561708,0.00013821,2]
[399449322,1766363445411,-501.59650189,0.00013821,2]
[399449324,1766363445420,-1000.0,0.00013821,2]
[399449326,1766363445430,-1000.0,0.00013821,2]
[399449327,1766363445440,-603.11348954,0.00013821,2]
[399449329,1766363445450,-503.24736115,0.00013821,2]
[399449331,1766363445459,-1000.0,0.00013821,2]
[399449333,1766363445468,-1000.0,0.00013821,2]
[399449336,1766363445477,-1000.0,0.00013821,2]
[399449338,1766363445486,-1000.0,0.00013821,2]
[399449339,1766363445496,-500.0,0.00013821,2]
[399449341,1766363445505,-1000.0,0.00013821,2]
[399449344,1766363445515,-501.11960352,0.00013821,2]
[399449345,1766363445524,-1000.0,0.00013821,2]
[399449347,1766363445533,-1000.0,0.00013821,2]
[399449350,1766363445542,-1000.0,0.00013821,2]
[399449352,1766363445552,-1000.0,0.00013821,2]
[399449353,1766363445561,-1000.0,0.00013821,2]
[399449355,1766363445570,-1000.0,0.00013821,2]
[399449358,1766363445580,-1000.0,0.00013821,2]
[399449360,1766363445589,-1000.0,0.00013821,2]
[399449361,1766363445598,-500.0,0.00013821,2]
[399449364,1766363445608,-1000.0,0.00013821,2]
[399449366,1766363445618,-1000.0,0.00013821,2]
[399449368,1766363445628,-1000.0,0.00013821,2]
[399449370,1766363445638,-1000.0,0.00013821,2]
[399449372,1766363445648,-722.91814379,0.00013851,2]
[399449373,1766363445657,-163.33406632,0.00013973,2]
[399449376,1766363445667,-151.0,0.00014,2]
[399449377,1766363445678,-1000.0,0.0001409,2]
[399449379,1766363445687,-1000.0,0.0001409,2]
[399449382,1766363445697,-151.0,0.000142,2]
[399449384,1766363445706,-600.0,0.00014221,2]
[399449386,1766363445716,-200.0,0.00014246,2]
[399449388,1766363445725,-200.0,0.00014246,2]
[399449389,1766363445734,-1000.0,0.00014247,2]
[399449392,1766363445743,-522.97580732,0.00014247,2]
[399449393,1766363445754,-500.0,0.00014247,2]
[399449396,1766363445764,-1000.0,0.00014247,2]
[399449398,1766363445774,-500.0,0.00014247,2]
[399449399,1766363445784,-1000.0,0.00014247,2]
[399449400,1766363445793,-1000.0,0.00014247,2]
[399449401,1766363445802,-1000.0,0.00014247,2]
[399449402,1766363445812,-1000.0,0.00014247,2]
[399449403,1766363445821,-573.56271478,0.00014247,2]
[399449404,1766363445830,-504.00283719,0.00014247,2]
[399449405,1766363445839,-1000.0,0.00014247,2]
[399449406,1766363445848,-1000.0,0.00014247,2]
[399449407,1766363445857,-1000.0,0.00014247,2]
[399449408,1766363445867,-811.25337352,0.00014247,2]
[399449409,1766363445875,-1000.0,0.00014247,2]
[399449410,1766363445886,-525.06267014,0.00014247,2]
[399449411,1766363445895,-1100.69483305,0.00014247,2]
[399449412,1766363445905,-1000.0,0.00014247,2]
[399449413,1766363445915,-1000.0,0.00014247,2]
[399449414,1766363445924,-1000.0,0.00014247,2]
[399449415,1766363445933,-1000.0,0.00014247,2]
[399449416,1766363445943,-502.83409231,0.00014247,2]
[399449417,1766363445952,-1000.0,0.00014247,2]
[399449418,1766363445962,-678.27987303,0.00014247,2]
[399449419,1766363445971,-1000.0,0.00014247,2]
[399449420,1766363445980,-1000.0,0.00014247,2]
[399449422,1766363445990,-1000.0,0.00014247,2]
[399449423,1766363446000,-153.60292089,0.00014247,2]
[399449424,1766363446010,-1000.0,0.00014247,2]
[399449425,1766363446020,-1000.0,0.00014247,2]
[399449426,1766363446029,-1000.0,0.00014247,2]
[399449427,1766363446038,-1000.0,0.00014247,2]
[399449428,1766363446048,-1000.0,0.00014247,2]
[399449429,1766363446057,-1000.0,0.00014247,2]
[399449430,1766363446067,-1000.0,0.00014247,2]
[399449431,1766363446076,-1000.0,0.00014247,2]
[399449432,1766363446085,-1000.0,0.00014247,2]
[399449433,1766363446096,-1000.0,0.00014247,2]
[399449434,1766363446108,-500.16126557,0.00014247,2]
[399449435,1766363446118,-1000.0,0.00014247,2]
[399449436,1766363446128,-1000.0,0.00014247,2]
[399449438,1766363446139,-1000.0,0.00014247,2]
[399449440,1766363446149,-260.0,0.00014247,2]
[399449442,1766363446159,-1500.0,0.00014368,2]
[399449443,1766363446169,-1500.0,0.00014368,2]
[399449444,1766363446180,-1500.0,0.00014368,2]
[399449446,1766363446190,-1500.0,0.00014368,2]
[399449447,1766363446199,-1500.0,0.00014368,2]
[399449448,1766363446208,-845.17835734,0.00014368,2]
[399449449,1766363446218,-1500.0,0.00014368,2]
[399449450,1766363446227,-1485.46957043,0.00014368,2]
[399449451,1766363446236,-681.40611778,0.00014368,2]
[399449452,1766363446247,-1500.0,0.00014368,2]
[399449453,1766363446256,-1500.0,0.00014368,2]
[399449454,1766363446265,-1500.0,0.00014368,2]
[399449455,1766363446275,-1500.0,0.00014368,2]
[399449456,1766363446284,-1500.0,0.00014368,2]
[399449458,1766363446293,-500.78069966,0.00014368,2]
[399449460,1766363446303,-1000.0,0.00014368,2]
[399449462,1766363446312,-1500.0,0.00014368,2]
[399449464,1766363446322,-1500.0,0.00014368,2]
[399449466,1766363446331,-600.0,0.000144,2]
[399449468,1766363446340,-1359.0,0.00014401,2]
[399449469,1766363446350,-2154.0,0.00014401,2]
[399449471,1766363446359,-630.0,0.00014401,2]
[399449472,1766363446369,-415.0,0.00014421,2]
[399449473,1766363446381,-2675.96542275,0.0001444,8]
[399449474,1766363446390,-151.0,0.000145,2]
[399449475,1766363446400,-2000.0,0.00014514,7]
[399449476,1766363446410,-600.0,0.0001455,2]
[399449477,1766363446420,-151.0,0.000146,2]
[399449478,1766363446429,-600.0,0.000147,2]
[399449479,1766363446439,-900.0,0.00014768,2]
[399449480,1766363446459,-1500.0,0.00014795,2]
[399449481,1766363446468,-1500.0,0.00014795,2]
[399449482,1766363446478,-656.1355002,0.00014795,2]
[399449483,1766363446487,-761.56754361,0.00014795,2]
[399449485,1766363446507,-526.88087015,0.00014795,2]
[399449487,1766363446519,-502.44269813,0.00014795,2]
[399449489,1766363446529,-629.33716959,0.00014795,2]
[399449491,1766363446539,-501.48544745,0.00014795,2]
[399449492,1766363446549,-1500.0,0.00014795,2]
[399449494,1766363446559,-1500.0,0.00014795,2]
[399449495,1766363446569,-645.73406095,0.00014795,2]
[399449496,1766363446580,-1500.0,0.00014795,2]
[399449497,1766363446590,-1000.0,0.00014795,2]
[399449498,1766363446601,-355.66851704,0.00014795,2]
[399449499,1766363446611,-255.91032278,0.00014795,2]
[399449500,1766363446622,-1500.0,0.00014795,2]
[399449501,1766363446634,-177.22865035,0.00014795,2]
[399449502,1766363446646,-1165.27462564,0.00014795,2]
[399449504,1766363446656,-1500.0,0.00014795,2]
[399449506,1766363446666,-1304.29252433,0.00014795,2]
[399449508,1766363446676,-1275.32352407,0.00014795,2]
[399449510,1766363446687,-1500.0,0.00014795,2]
[399449511,1766363446697,-1500.0,0.00014795,2]
[399449512,1766363446707,-1500.0,0.00014795,2]
[399449513,1766363446718,-1500.0,0.00014795,2]
[399449514,1766363446728,-783.01687613,0.00014795,2]
[399449515,1766363446737,-1000.0,0.00014795,2]
[399449516,1766363446748,-1000.0,0.00014795,2]
[399449517,1766363446757,-1191.71372276,0.00014795,2]
[399449518,1766363446767,-360.0,0.00014795,2]
[399449519,1766363446777,-600.0,0.0001485,2]
[399449520,1766363446787,-2000.0,0.00014916,2]
[399449521,1766363446797,-595.95731859,0.00014916,2]
[399449522,1766363446806,-503.47891494,0.00014916,2]
[399449523,1766363446816,-2000.0,0.00014916,2]
[399449524,1766363446826,-2000.0,0.00014916,2]
[399449525,1766363446836,-1328.26611792,0.00014916,2]
[399449526,1766363446846,-2000.0,0.00014916,2]
[399449527,1766363446856,-2000.0,0.00014916,2]
[399449528,1766363446867,-2000.0,0.00014916,2]
[399449529,1766363446878,-509.57118259,0.00014916,2]
[399449530,1766363446887,-2000.0,0.00014916,2]
[399449531,1766363446897,-2000.0,0.00014916,2]
[399449532,1766363446907,-2000.0,0.00014916,2]
[399449533,1766363446917,-375.35990936,0.00014997,2]
[399449534,1766363446928,-200.65670343,0.00014999,2]
[399449535,1766363446939,-56513.46155916,0.00015,2]
[399449536,1766363446949,-500.0,0.00015,2]
[399449537,1766363446958,-159.77,0.00015,2]
[399449538,1766363446968,-306.136966,0.00015,2]
[399449539,1766363446978,-150.59674224,0.00015,2]
[399449540,1766363446988,-151.0,0.00015,2]
[399449541,1766363446998,-1000.0,0.00015,2]
[399449542,1766363447013,-600.0,0.00015,2]
[399449543,1766363447023,-181.23987,0.00015068,2]
[399449544,1766363447034,-800.0,0.00015068,2]
[399449545,1766363447044,-1135.74606394,0.0001515,2]
[399449546,1766363447054,-600.64907958,0.0001516,2]
[399449547,1766363447064,-1200.0,0.00015316,2]
[399449548,1766363447075,-2000.0,0.00015329,7]
[399449549,1766363447086,-460.0,0.00015342,2]
[399449550,1766363447096,-501.34824304,0.00015342,2]
[399449551,1766363447110,-2000.0,0.00015342,2]
[399449552,1766363447120,-658.42954462,0.00015342,2]
[399449553,1766363447132,-2000.0,0.00015342,2]
[399449554,1766363447143,-2000.0,0.00015342,2]
[399449555,1766363447154,-2000.0,0.00015342,2]
[399449556,1766363447164,-2000.0,0.00015342,2]
[399449557,1766363447175,-2000.0,0.00015342,2]
[399449558,1766363447186,-1662.88193759,0.00015342,2]
[399449559,1766363447196,-2000.0,0.00015342,2]